[Event "*** Biggest EVER Titled Tuesday"]
[Site "Chess.com"]
[Date "2018.04.17"]
[Round "7"]
[White "DrStephenStrange"]
[Black "Renegade_Hitman"]
[Result "1-0"]
[WhiteElo "1979"]
[BlackElo "2052"]
[TimeControl "180+2"]
[EndTime "14:38:22 PDT"]
[Termination "DrStephenStrange won on time"]

1. Nf3 {[%clk 0:03:01.9]} 1... d5 {[%clk 0:03:00]} 2. c4 {[%clk 0:03:02.6]} 2...
c5 {[%clk 0:03:01.6]} 3. cxd5 {[%clk 0:03:03]} 3... Nf6 {[%clk 0:03:01.9]} 4. e4
{[%clk 0:03:03.2]} 4... e6 {[%clk 0:02:52.8]} 5. dxe6 {[%clk 0:03:00]} 5... Bxe6
{[%clk 0:02:54.7]} 6. Nc3 {[%clk 0:03:00.8]} 6... Nc6 {[%clk 0:02:54]} 7. Bb5
{[%clk 0:02:59.8]} 7... Be7 {[%clk 0:02:41.5]} 8. d4 {[%clk 0:02:53.8]} 8...
cxd4 {[%clk 0:02:42.3]} 9. Nxd4 {[%clk 0:02:51.2]} 9... Bd7 {[%clk 0:02:43.7]}
10. Nxc6 {[%clk 0:02:48.7]} 10... bxc6 {[%clk 0:02:45.6]} 11. Bc4 {[%clk
0:02:47.3]} 11... O-O {[%clk 0:02:38.3]} 12. O-O {[%clk 0:02:47.9]} 12... Bb4
{[%clk 0:02:37.5]} 13. e5 {[%clk 0:02:19.1]} 13... Ng4 {[%clk 0:02:24]} 14. Qe2
{[%clk 0:02:06.2]} 14... Qe7 {[%clk 0:01:29.5]} 15. Bf4 {[%clk 0:01:44]} 15...
Rae8 {[%clk 0:01:15.2]} 16. Rae1 {[%clk 0:01:41.6]} 16... Qc5 {[%clk 0:00:59.4]}
17. Bb3 {[%clk 0:01:00.1]} 17... Bxc3 {[%clk 0:00:57.4]} 18. bxc3 {[%clk
0:00:58.6]} 18... Qxc3 {[%clk 0:00:54.1]} 19. e6 {[%clk 0:00:51]} 19... Bxe6
{[%clk 0:00:44.3]} 20. Rc1 {[%clk 0:00:50.7]} 20... Qf6 {[%clk 0:00:35.9]} 21.
Bxe6 {[%clk 0:00:50.3]} 21... Qxf4 {[%clk 0:00:23.5]} 22. Qxg4 {[%clk
0:00:47.9]} 22... fxe6 {[%clk 0:00:21.3]} 23. Qxf4 {[%clk 0:00:45.8]} 23... Rxf4
{[%clk 0:00:23.2]} 24. Rxc6 {[%clk 0:00:46.5]} 24... Ra4 {[%clk 0:00:22.2]} 25.
Rc2 {[%clk 0:00:44.9]} 25... Kf7 {[%clk 0:00:22.5]} 26. Rb1 {[%clk 0:00:44.8]}
26... Re7 {[%clk 0:00:23.1]} 27. Kf1 {[%clk 0:00:43.9]} 27... e5 {[%clk
0:00:22.7]} 28. f3 {[%clk 0:00:43.4]} 28... e4 {[%clk 0:00:22.2]} 29. fxe4
{[%clk 0:00:41.8]} 29... Raxe4 {[%clk 0:00:22.3]} 30. Rb3 {[%clk 0:00:40.5]}
30... Rf4+ {[%clk 0:00:17.4]} 31. Rf2 {[%clk 0:00:41.4]} 31... Rf6 {[%clk
0:00:12.3]} 32. Ra3 {[%clk 0:00:39.3]} 32... Kg6 {[%clk 0:00:09.7]} 33. Rxf6+
{[%clk 0:00:39]} 33... Kxf6 {[%clk 0:00:10.6]} 34. Kf2 {[%clk 0:00:40]} 34...
Kf5 {[%clk 0:00:09.9]} 35. Kf3 {[%clk 0:00:39.2]} 35... Rc7 {[%clk 0:00:09]} 36.
Ra5+ {[%clk 0:00:38.8]} 36... Kf6 {[%clk 0:00:09.5]} 37. Ke4 {[%clk 0:00:38.7]}
37... Rc2 {[%clk 0:00:09.9]} 38. Kf3 {[%clk 0:00:39.6]} 38... Rc7 {[%clk
0:00:09.3]} 39. h3 {[%clk 0:00:39.8]} 39... g5 {[%clk 0:00:09]} 40. Kg4 {[%clk
0:00:36]} 40... Rc4+ {[%clk 0:00:09.1]} 41. Kg3 {[%clk 0:00:36.9]} 41... Rc3+
{[%clk 0:00:09.6]} 42. Kf2 {[%clk 0:00:37.4]} 42... Rc2+ {[%clk 0:00:10.1]} 43.
Kf3 {[%clk 0:00:38.6]} 43... Rc3+ {[%clk 0:00:11.1]} 44. Ke4 {[%clk 0:00:38.7]}
44... Rc7 {[%clk 0:00:04.9]} 45. Ra6+ {[%clk 0:00:38.4]} 45... Kg7 {[%clk
0:00:03.3]} 46. g4 {[%clk 0:00:39.1]} 1-0

[Event "*** Biggest EVER Titled Tuesday"]
[Site "Chess.com"]
[Date "2018.04.17"]
[Round "7"]
[White "Eliwood44"]
[Black "hblanco"]
[Result "0-1"]
[WhiteElo "2123"]
[BlackElo "2322"]
[TimeControl "180+2"]
[EndTime "14:38:23 PDT"]
[Termination "hblanco won by checkmate"]

1. d4 {[%clk 0:03:01.9]} 1... Nf6 {[%clk 0:03:00.4]} 2. Nf3 {[%clk 0:03:02.4]}
2... e6 {[%clk 0:03:01.5]} 3. e3 {[%clk 0:03:02.8]} 3... c5 {[%clk 0:02:52.9]}
4. Bd3 {[%clk 0:03:03.1]} 4... b6 {[%clk 0:02:44.6]} 5. O-O {[%clk 0:03:02.3]}
5... Bb7 {[%clk 0:02:44.9]} 6. c4 {[%clk 0:03:03]} 6... d5 {[%clk 0:02:36.7]} 7.
cxd5 {[%clk 0:02:56.5]} 7... exd5 {[%clk 0:02:33.3]} 8. Ne5 {[%clk 0:02:43.7]}
8... Be7 {[%clk 0:02:23.5]} 9. Bb5+ {[%clk 0:02:40]} 9... Nfd7 {[%clk 0:02:15]}
10. Qg4 {[%clk 0:02:36]} 10... Bf6 {[%clk 0:01:45.3]} 11. Nc3 {[%clk 0:02:12.9]}
11... a6 {[%clk 0:01:43.7]} 12. Bxd7+ {[%clk 0:02:08.6]} 12... Nxd7 {[%clk
0:01:44.1]} 13. f4 {[%clk 0:02:06.2]} 13... c4 {[%clk 0:01:10.2]} 14. b3 {[%clk
0:01:50.5]} 14... b5 {[%clk 0:00:59.3]} 15. bxc4 {[%clk 0:01:48.5]} 15... dxc4
{[%clk 0:00:55.3]} 16. Ba3 {[%clk 0:01:48.9]} 16... Qc7 {[%clk 0:00:34.3]} 17.
e4 {[%clk 0:01:34.8]} 17... O-O-O {[%clk 0:00:33.8]} 18. Nxf7 {[%clk 0:01:30.1]}
18... Bxd4+ {[%clk 0:00:34.3]} 19. Kh1 {[%clk 0:01:29.9]} 19... Bxc3 {[%clk
0:00:31.9]} 20. Rac1 {[%clk 0:01:29.5]} 20... b4 {[%clk 0:00:21.4]} 21. e5
{[%clk 0:01:23.1]} 21... Bd2 {[%clk 0:00:18.1]} 22. Rc2 {[%clk 0:01:19.7]} 22...
bxa3 {[%clk 0:00:10.8]} 23. Rxd2 {[%clk 0:01:20.2]} 23... Kb8 {[%clk 0:00:12]}
24. Nxh8 {[%clk 0:01:18.4]} 24... c3 {[%clk 0:00:09.1]} 25. Rd6 {[%clk
0:01:17.4]} 25... c2 {[%clk 0:00:09.7]} 26. Rc1 {[%clk 0:01:18.3]} 26... Qc3
{[%clk 0:00:05.7]} 27. Rxd7 {[%clk 0:01:15.1]} 27... Rxd7 {[%clk 0:00:03]} 28.
Qxd7 {[%clk 0:01:15]} 28... Qe3 {[%clk 0:00:02.5]} 29. Rd1 {[%clk 0:00:38.7]}
29... c1=Q {[%clk 0:00:04.4]} 30. Qd6+ {[%clk 0:00:29.2]} 30... Ka7 {[%clk
0:00:03.9]} 31. h3 {[%clk 0:00:24.9]} 31... Qe2 {[%clk 0:00:04.1]} 32. Qd4+
{[%clk 0:00:22.6]} 32... Kb8 {[%clk 0:00:04.6]} 33. Qd6+ {[%clk 0:00:16.9]}
33... Qc7 {[%clk 0:00:05.2]} 34. Qf8+ {[%clk 0:00:16.4]} 34... Ka7 {[%clk
0:00:05.7]} 35. Rg1 {[%clk 0:00:17.5]} 35... Qf2 {[%clk 0:00:05.2]} 36. Qxa3
{[%clk 0:00:16.2]} 36... Qc6 {[%clk 0:00:04.5]} 37. Qd6 {[%clk 0:00:11]} 37...
Qcxg2+ {[%clk 0:00:04.6]} 38. Rxg2 {[%clk 0:00:12.3]} 38... Qxg2# {[%clk
0:00:06.5]} 0-1

[Event "*** Biggest EVER Titled Tuesday"]
[Site "Chess.com"]
[Date "2018.04.17"]
[Round "7"]
[White "ChessQueen"]
[Black "MartinMatthiesen"]
[Result "0-1"]
[WhiteElo "2595"]
[BlackElo "2406"]
[TimeControl "180+2"]
[EndTime "14:38:26 PDT"]
[Termination "MartinMatthiesen won by resignation"]

1. Nf3 {[%clk 0:03:01.9]} 1... c5 {[%clk 0:02:58.8]} 2. e4 {[%clk 0:03:02.2]}
2... Nc6 {[%clk 0:02:54.6]} 3. Bb5 {[%clk 0:03:02.1]} 3... g6 {[%clk 0:02:54.6]}
4. Bxc6 {[%clk 0:03:01.5]} 4... dxc6 {[%clk 0:02:54.5]} 5. d3 {[%clk 0:03:01.7]}
5... Bg7 {[%clk 0:02:55.3]} 6. Nc3 {[%clk 0:02:56.3]} 6... Nf6 {[%clk
0:02:54.4]} 7. Be3 {[%clk 0:02:56]} 7... Nd7 {[%clk 0:02:45.8]} 8. Qd2 {[%clk
0:02:53.7]} 8... h6 {[%clk 0:02:44.1]} 9. h4 {[%clk 0:02:51.5]} 9... e5 {[%clk
0:02:44.1]} 10. h5 {[%clk 0:02:48.1]} 10... g5 {[%clk 0:02:44.5]} 11. O-O-O
{[%clk 0:02:47.6]} 11... Qe7 {[%clk 0:02:41.1]} 12. Ne2 {[%clk 0:02:39.4]} 12...
Nf8 {[%clk 0:02:11.8]} 13. Ng3 {[%clk 0:02:29.1]} 13... Bg4 {[%clk 0:02:12]} 14.
Nf5 {[%clk 0:02:15.8]} 14... Bxf5 {[%clk 0:02:10.6]} 15. exf5 {[%clk 0:02:17]}
15... O-O-O {[%clk 0:02:06.8]} 16. Qa5 {[%clk 0:02:14.8]} 16... b6 {[%clk
0:02:07.3]} 17. Qa4 {[%clk 0:02:14.5]} 17... Kb7 {[%clk 0:02:05.4]} 18. Nd2
{[%clk 0:02:06.1]} 18... Nd7 {[%clk 0:02:03.6]} 19. Nb3 {[%clk 0:01:39.9]} 19...
Nf6 {[%clk 0:01:52.3]} 20. Rhe1 {[%clk 0:01:17.6]} 20... Qc7 {[%clk 0:01:46]}
21. f3 {[%clk 0:00:45.9]} 21... Nxh5 {[%clk 0:01:43]} 22. Bf2 {[%clk 0:00:35.3]}
22... Nf4 {[%clk 0:01:32.5]} 23. g3 {[%clk 0:00:33.3]} 23... Nd5 {[%clk
0:01:31.1]} 24. Qe4 {[%clk 0:00:31.2]} 24... h5 {[%clk 0:01:25.8]} 25. Kb1
{[%clk 0:00:30.2]} 25... Bf6 {[%clk 0:01:14.7]} 26. a4 {[%clk 0:00:30.7]} 26...
h4 {[%clk 0:01:09.5]} 27. a5 {[%clk 0:00:24.9]} 27... hxg3 {[%clk 0:01:08.3]}
28. Bxg3 {[%clk 0:00:25.2]} 28... Nf4 {[%clk 0:01:04]} 29. Qc4 {[%clk 0:00:25]}
29... Rh3 {[%clk 0:00:58.2]} 30. Bf2 {[%clk 0:00:20.3]} 30... Rxf3 {[%clk
0:00:46.1]} 31. Bg1 {[%clk 0:00:16.4]} 31... Nd5 {[%clk 0:00:41.2]} 32. Qg4
{[%clk 0:00:14]} 32... Rf4 {[%clk 0:00:40.1]} 33. Qg2 {[%clk 0:00:14.5]} 33...
Rxf5 {[%clk 0:00:38.4]} 34. Qe4 {[%clk 0:00:14.2]} 34... Rf4 {[%clk 0:00:38.5]}
35. Qg2 {[%clk 0:00:14.5]} 35... Qc8 {[%clk 0:00:34.8]} 36. Re4 {[%clk
0:00:13.8]} 36... Qf5 {[%clk 0:00:32.6]} 37. Rde1 {[%clk 0:00:13.5]} 37... g4
{[%clk 0:00:30.5]} 38. Qh2 {[%clk 0:00:09.3]} 38... Rh8 {[%clk 0:00:27.8]} 39.
Qg2 {[%clk 0:00:10.5]} 39... Rh3 {[%clk 0:00:24.6]} 40. Bxc5 {[%clk 0:00:10.6]}
40... bxc5 {[%clk 0:00:19.7]} 41. Nxc5+ {[%clk 0:00:12.1]} 41... Kc8 {[%clk
0:00:19.9]} 42. Rxf4 {[%clk 0:00:09.4]} 42... Qxf4 {[%clk 0:00:19.8]} 43. c4
{[%clk 0:00:10.1]} 43... Rh2 {[%clk 0:00:19.4]} 44. Qg1 {[%clk 0:00:10.8]} 44...
Qd2 {[%clk 0:00:19.8]} 45. Na4 {[%clk 0:00:05.7]} 45... Qc2+ {[%clk 0:00:20.4]}
46. Ka1 {[%clk 0:00:06.1]} 46... Qxa4+ {[%clk 0:00:21.4]} 0-1

[Event "*** Biggest EVER Titled Tuesday"]
[Site "Chess.com"]
[Date "2018.04.17"]
[Round "7"]
[White "Quiet_Desperation"]
[Black "Princec7"]
[Result "0-1"]
[WhiteElo "2390"]
[BlackElo "2400"]
[TimeControl "180+2"]
[EndTime "14:38:26 PDT"]
[Termination "Princec7 won on time"]

1. e4 {[%clk 0:03:01.9]} 1... c5 {[%clk 0:03:00.5]} 2. Nf3 {[%clk 0:03:01.7]}
2... e6 {[%clk 0:03:01.4]} 3. d4 {[%clk 0:03:02.8]} 3... cxd4 {[%clk 0:03:02.5]}
4. Nxd4 {[%clk 0:03:04.1]} 4... Nf6 {[%clk 0:03:04]} 5. Nc3 {[%clk 0:03:04.8]}
5... Nc6 {[%clk 0:03:05.2]} 6. Nb3 {[%clk 0:03:05.1]} 6... Bb4 {[%clk
0:03:04.5]} 7. Bd3 {[%clk 0:03:05.7]} 7... O-O {[%clk 0:03:03.6]} 8. O-O {[%clk
0:03:05.1]} 8... b6 {[%clk 0:03:03.8]} 9. f4 {[%clk 0:03:02.4]} 9... d6 {[%clk
0:02:51.4]} 10. Rf3 {[%clk 0:02:55.6]} 10... a5 {[%clk 0:02:45.2]} 11. Rh3
{[%clk 0:02:49.6]} 11... a4 {[%clk 0:02:43.6]} 12. Nd2 {[%clk 0:02:22.9]} 12...
e5 {[%clk 0:02:43]} 13. f5 {[%clk 0:02:23.2]} 13... d5 {[%clk 0:01:56.4]} 14.
Nxd5 {[%clk 0:02:06.8]} 14... Nxd5 {[%clk 0:01:54]} 15. exd5 {[%clk 0:02:07.4]}
15... Qxd5 {[%clk 0:01:34.8]} 16. Rxh7 {[%clk 0:01:45.3]} 16... Kxh7 {[%clk
0:01:33.2]} 17. Qh5+ {[%clk 0:01:44.8]} 17... Kg8 {[%clk 0:01:34]} 18. f6 {[%clk
0:01:45.1]} 18... Qc5+ {[%clk 0:01:20.2]} 19. Kh1 {[%clk 0:01:34.2]} 19... e4
{[%clk 0:01:22.1]} 20. Qh4 {[%clk 0:01:23.7]} 20... exd3 {[%clk 0:01:20.1]} 21.
Ne4 {[%clk 0:01:25]} 21... Re8 {[%clk 0:00:46]} 22. fxg7 {[%clk 0:01:18.7]}
22... f5 {[%clk 0:00:32.8]} 23. Qh8+ {[%clk 0:01:14.2]} 23... Kf7 {[%clk
0:00:32.7]} 24. Qh7 {[%clk 0:00:43.2]} 24... Rg8 {[%clk 0:00:31.6]} 25. Nxc5
{[%clk 0:00:37.1]} 25... Bxc5 {[%clk 0:00:31.4]} 26. cxd3 {[%clk 0:00:38.3]}
26... Rxg7 {[%clk 0:00:31.6]} 27. Qh5+ {[%clk 0:00:38.2]} 27... Kg8 {[%clk
0:00:31.5]} 28. Bh6 {[%clk 0:00:37.4]} 28... Bd7 {[%clk 0:00:19.2]} 29. Bxg7
{[%clk 0:00:37.2]} 29... Kxg7 {[%clk 0:00:21.1]} 30. Qg5+ {[%clk 0:00:34.2]}
30... Kf7 {[%clk 0:00:21.9]} 31. Re1 {[%clk 0:00:35]} 31... Rg8 {[%clk
0:00:19.4]} 32. Qh5+ {[%clk 0:00:32.8]} 32... Kf8 {[%clk 0:00:19.5]} 33. Qh6+
{[%clk 0:00:29.7]} 33... Rg7 {[%clk 0:00:18.2]} 34. Qh8+ {[%clk 0:00:18.8]}
34... Kf7 {[%clk 0:00:18.3]} 35. Qh5+ {[%clk 0:00:17.6]} 35... Kf8 {[%clk
0:00:18.6]} 36. Qh8+ {[%clk 0:00:18.3]} 36... Kf7 {[%clk 0:00:19.8]} 37. a3
{[%clk 0:00:18.4]} 37... Ne7 {[%clk 0:00:15.6]} 38. Qd8 {[%clk 0:00:15.4]} 38...
Bc6 {[%clk 0:00:16.1]} 39. d4 {[%clk 0:00:09.7]} 39... Rxg2 {[%clk 0:00:08.8]}
0-1

[Event "*** Biggest EVER Titled Tuesday"]
[Site "Chess.com"]
[Date "2018.04.17"]
[Round "7"]
[White "twitchTriniCupid"]
[Black "Safar_From_Afar"]
[Result "0-1"]
[WhiteElo "2168"]
[BlackElo "2279"]
[TimeControl "180+2"]
[EndTime "14:38:28 PDT"]
[Termination "Safar_From_Afar won by resignation"]

1. d4 {[%clk 0:03:01.9]} 1... Nf6 {[%clk 0:02:53]} 2. c4 {[%clk 0:03:00.4]} 2...
g6 {[%clk 0:02:53.1]} 3. Nf3 {[%clk 0:03:00.4]} 3... Bg7 {[%clk 0:02:54.5]} 4.
a3 {[%clk 0:03:01.3]} 4... O-O {[%clk 0:02:55.5]} 5. Nc3 {[%clk 0:03:02.6]} 5...
d5 {[%clk 0:02:56.4]} 6. cxd5 {[%clk 0:02:58.8]} 6... Nxd5 {[%clk 0:02:58.3]} 7.
e4 {[%clk 0:03:00.5]} 7... Nxc3 {[%clk 0:02:58.9]} 8. bxc3 {[%clk 0:03:02.4]}
8... c5 {[%clk 0:03:00.2]} 9. h3 {[%clk 0:03:01.6]} 9... cxd4 {[%clk 0:02:52.9]}
10. cxd4 {[%clk 0:03:02.4]} 10... Nc6 {[%clk 0:02:54.4]} 11. Be3 {[%clk
0:03:03.4]} 11... Qa5+ {[%clk 0:02:54.7]} 12. Bd2 {[%clk 0:02:59.4]} 12... Qb6
{[%clk 0:02:49.1]} 13. d5 {[%clk 0:02:56.8]} 13... Bxa1 {[%clk 0:02:47.4]} 14.
Qxa1 {[%clk 0:02:57.6]} 14... Na5 {[%clk 0:02:36]} 15. Bh6 {[%clk 0:02:50.7]}
15... f6 {[%clk 0:02:13]} 16. Be2 {[%clk 0:02:50.9]} 16... Nb3 {[%clk
0:02:10.3]} 17. Qb2 {[%clk 0:02:49.4]} 17... Qa5+ {[%clk 0:02:08.5]} 18. Kf1
{[%clk 0:02:39]} 18... Nc5 {[%clk 0:01:56.6]} 19. Nd2 {[%clk 0:02:03.2]} 19...
Rd8 {[%clk 0:01:14.3]} 20. e5 {[%clk 0:01:32.8]} 20... Qb6 {[%clk 0:01:14.5]}
21. Qa1 {[%clk 0:01:23.5]} 21... fxe5 {[%clk 0:01:12.6]} 22. Be3 {[%clk
0:00:49.3]} 22... Qc7 {[%clk 0:01:10.9]} 23. Nf3 {[%clk 0:00:26.4]} 23... Ne4
{[%clk 0:01:07]} 24. Qxe5 {[%clk 0:00:16.2]} 24... Qxe5 {[%clk 0:01:07.4]} 25.
Nxe5 {[%clk 0:00:18.1]} 25... Nc3 {[%clk 0:01:04.7]} 26. Bc4 {[%clk 0:00:18.4]}
26... b5 {[%clk 0:01:04.5]} 27. Bb3 {[%clk 0:00:19]} 27... Bb7 {[%clk 0:01:02]}
28. d6+ {[%clk 0:00:19.8]} 28... Bd5 {[%clk 0:01:00.5]} 29. dxe7 {[%clk
0:00:19.6]} 29... Re8 {[%clk 0:00:58.9]} 30. Bc2 {[%clk 0:00:19.9]} 30... Rxe7
{[%clk 0:00:57]} 31. Bd4 {[%clk 0:00:21.3]} 31... Rc8 {[%clk 0:00:55.8]} 32. Bd3
{[%clk 0:00:21]} 32... Nb1 {[%clk 0:00:51.6]} 33. Ke2 {[%clk 0:00:20.9]} 33...
Nxa3 {[%clk 0:00:52.5]} 34. f4 {[%clk 0:00:21.5]} 34... Bxg2 {[%clk 0:00:51]}
35. Rg1 {[%clk 0:00:22.3]} 35... Bxh3 {[%clk 0:00:52]} 36. Kf3 {[%clk 0:00:23]}
36... Be6 {[%clk 0:00:44.7]} 37. Be4 {[%clk 0:00:23.8]} 37... Nc4 {[%clk
0:00:42.7]} 38. Nc6 {[%clk 0:00:24.1]} 38... Rxc6 {[%clk 0:00:39]} 39. Bxc6
{[%clk 0:00:23.5]} 39... a6 {[%clk 0:00:40.4]} 40. Bc3 {[%clk 0:00:22]} 40...
Bf7 {[%clk 0:00:41.7]} 41. Re1 {[%clk 0:00:22.2]} 41... Re6 {[%clk 0:00:36.7]}
42. Bb7 {[%clk 0:00:21.3]} 42... a5 {[%clk 0:00:35.3]} 43. Rd1 {[%clk
0:00:20.3]} 43... Re3+ {[%clk 0:00:33.3]} 44. Kg4 {[%clk 0:00:17.9]} 44... Rxc3
{[%clk 0:00:34.2]} 45. f5 {[%clk 0:00:17.4]} 45... gxf5+ {[%clk 0:00:34.2]} 46.
Kxf5 {[%clk 0:00:18.6]} 46... Bg6+ {[%clk 0:00:35.5]} 47. Kf6 {[%clk 0:00:19.6]}
47... Rd3 {[%clk 0:00:25.3]} 48. Rxd3 {[%clk 0:00:16.6]} 48... Bxd3 {[%clk
0:00:25.7]} 0-1

[Event "*** Biggest EVER Titled Tuesday"]
[Site "Chess.com"]
[Date "2018.04.17"]
[Round "7"]
[White "BilodeauA"]
[Black "Zhuu96"]
[Result "0-1"]
[WhiteElo "2638"]
[BlackElo "2735"]
[TimeControl "180+2"]
[EndTime "14:38:29 PDT"]
[Termination "Zhuu96 won by checkmate"]

1. e4 {[%clk 0:03:01.9]} 1... c5 {[%clk 0:02:56.4]} 2. Nf3 {[%clk 0:03:02.7]}
2... Nc6 {[%clk 0:02:57]} 3. d4 {[%clk 0:03:03.3]} 3... cxd4 {[%clk 0:02:58.2]}
4. Nxd4 {[%clk 0:03:05.2]} 4... Nf6 {[%clk 0:02:59.5]} 5. Nc3 {[%clk 0:03:05.6]}
5... e5 {[%clk 0:03:01.1]} 6. Ndb5 {[%clk 0:03:06.7]} 6... d6 {[%clk 0:03:02]}
7. Bg5 {[%clk 0:03:07.9]} 7... a6 {[%clk 0:03:03]} 8. Na3 {[%clk 0:03:09.4]}
8... b5 {[%clk 0:03:04.3]} 9. Nd5 {[%clk 0:03:11]} 9... Be7 {[%clk 0:03:05.5]}
10. Bxf6 {[%clk 0:03:11.9]} 10... Bxf6 {[%clk 0:03:06.5]} 11. c4 {[%clk
0:03:13.4]} 11... b4 {[%clk 0:03:07.6]} 12. Nc2 {[%clk 0:03:14.4]} 12... O-O
{[%clk 0:03:09.2]} 13. g3 {[%clk 0:03:15.3]} 13... a5 {[%clk 0:03:08]} 14. Bg2
{[%clk 0:03:15.2]} 14... Bg5 {[%clk 0:03:09.2]} 15. O-O {[%clk 0:03:15.6]} 15...
Ne7 {[%clk 0:03:09.1]} 16. f4 {[%clk 0:02:11]} 16... Bh6 {[%clk 0:03:07.8]} 17.
Nde3 {[%clk 0:01:47.1]} 17... exf4 {[%clk 0:03:06]} 18. gxf4 {[%clk 0:01:47.7]}
18... Ng6 {[%clk 0:03:07.5]} 19. Nd5 {[%clk 0:01:47.3]} 19... Bb7 {[%clk
0:03:08.1]} 20. Qg4 {[%clk 0:01:42.2]} 20... Nh4 {[%clk 0:03:01.1]} 21. Nd4
{[%clk 0:01:34.1]} 21... g6 {[%clk 0:02:35.4]} 22. Rad1 {[%clk 0:01:31.4]} 22...
Bg7 {[%clk 0:02:33.1]} 23. Kh1 {[%clk 0:01:30.6]} 23... Re8 {[%clk 0:02:32.4]}
24. f5 {[%clk 0:01:28.2]} 24... h5 {[%clk 0:02:23.2]} 25. Qh3 {[%clk 0:01:22.3]}
25... Qg5 {[%clk 0:02:19]} 26. fxg6 {[%clk 0:01:17.7]} 26... fxg6 {[%clk
0:02:16.4]} 27. Ne6 {[%clk 0:01:09.9]} 27... Qxg2+ {[%clk 0:02:16.4]} 28. Qxg2
{[%clk 0:01:10]} 28... Nxg2 {[%clk 0:02:17.9]} 29. Nxg7 {[%clk 0:01:09.7]} 29...
Kxg7 {[%clk 0:02:17.7]} 30. Kxg2 {[%clk 0:01:08.9]} 30... Rxe4 {[%clk
0:02:18.6]} 31. b3 {[%clk 0:01:00.9]} 31... Rg4+ {[%clk 0:02:13.4]} 32. Kh1
{[%clk 0:00:55.2]} 32... Re8 {[%clk 0:02:13]} 33. Rd2 {[%clk 0:00:43.2]} 33...
Re5 {[%clk 0:02:10.8]} 34. h3 {[%clk 0:00:41.2]} 34... Rgg5 {[%clk 0:02:08.3]}
35. Rfd1 {[%clk 0:00:38.9]} 35... h4 {[%clk 0:02:03.2]} 36. Kh2 {[%clk
0:00:37.9]} 36... Rgf5 {[%clk 0:02:00.4]} 37. Nc7 {[%clk 0:00:34.5]} 37... Rf3
{[%clk 0:02:01.2]} 38. Rxd6 {[%clk 0:00:27]} 38... Bc8 {[%clk 0:01:11]} 39. Rd8
{[%clk 0:00:19.4]} 39... Re2+ {[%clk 0:01:04.8]} 40. Kg1 {[%clk 0:00:20.2]}
40... Bxh3 {[%clk 0:01:04]} 41. Ne8+ {[%clk 0:00:18.4]} 41... Kh6 {[%clk
0:01:04.8]} 42. Nd6 {[%clk 0:00:19.8]} 42... Rg3+ {[%clk 0:01:04.6]} 43. Kh1
{[%clk 0:00:21.2]} 43... Bg2+ {[%clk 0:01:05.6]} 44. Kg1 {[%clk 0:00:21.3]}
44... Bh3+ {[%clk 0:00:48.7]} 45. Kh1 {[%clk 0:00:22.3]} 45... Bg2+ {[%clk
0:00:46.6]} 46. Kg1 {[%clk 0:00:23.5]} 46... Bf3+ {[%clk 0:00:35.5]} 47. Kf1
{[%clk 0:00:23.9]} 47... Rxa2 {[%clk 0:00:36.9]} 48. Nf7+ {[%clk 0:00:23.9]}
48... Kg7 {[%clk 0:00:35.4]} 49. R1d7 {[%clk 0:00:24.5]} 49... Bg4 {[%clk
0:00:36.6]} 50. Re7 {[%clk 0:00:23.3]} 50... Bh3+ {[%clk 0:00:37.6]} 51. Ke1
{[%clk 0:00:24.1]} 51... Rg1# {[%clk 0:00:38.6]} 0-1

[Event "*** Biggest EVER Titled Tuesday"]
[Site "Chess.com"]
[Date "2018.04.17"]
[Round "7"]
[White "SergeiAza"]
[Black "djamir"]
[Result "1-0"]
[WhiteElo "2643"]
[BlackElo "2626"]
[TimeControl "180+2"]
[EndTime "14:38:31 PDT"]
[Termination "SergeiAza won on time"]

1. e4 {[%clk 0:03:01.9]} 1... Nf6 {[%clk 0:02:58.3]} 2. e5 {[%clk 0:03:02.3]}
2... Nd5 {[%clk 0:02:59.4]} 3. d4 {[%clk 0:03:03.9]} 3... d6 {[%clk 0:03:00.1]}
4. c4 {[%clk 0:03:02.8]} 4... Nb6 {[%clk 0:03:01.1]} 5. exd6 {[%clk 0:03:03.8]}
5... exd6 {[%clk 0:03:03]} 6. Bd3 {[%clk 0:02:58.3]} 6... Be7 {[%clk 0:03:02.4]}
7. Ne2 {[%clk 0:02:51.1]} 7... O-O {[%clk 0:03:01.9]} 8. O-O {[%clk 0:02:51.9]}
8... Nc6 {[%clk 0:02:59]} 9. Nbc3 {[%clk 0:02:50.2]} 9... Bf6 {[%clk 0:02:53.7]}
10. Be3 {[%clk 0:02:40.6]} 10... Nb4 {[%clk 0:02:51.6]} 11. Ne4 {[%clk
0:02:17.9]} 11... Be7 {[%clk 0:02:34.1]} 12. N4g3 {[%clk 0:01:49.8]} 12... Nxd3
{[%clk 0:02:27.4]} 13. Qxd3 {[%clk 0:01:50.8]} 13... d5 {[%clk 0:02:19.9]} 14.
b3 {[%clk 0:01:50.7]} 14... c6 {[%clk 0:02:16.4]} 15. c5 {[%clk 0:01:43.6]}
15... Nd7 {[%clk 0:02:17.1]} 16. Nf5 {[%clk 0:01:39.6]} 16... Bf6 {[%clk
0:02:09.2]} 17. Neg3 {[%clk 0:01:35.8]} 17... b6 {[%clk 0:02:01.4]} 18. cxb6
{[%clk 0:01:08.2]} 18... axb6 {[%clk 0:02:01.1]} 19. Rfe1 {[%clk 0:01:08.9]}
19... Ba6 {[%clk 0:01:53.2]} 20. Qc2 {[%clk 0:01:07.7]} 20... c5 {[%clk
0:01:50.6]} 21. Nh5 {[%clk 0:01:03]} 21... c4 {[%clk 0:01:37]} 22. Bf4 {[%clk
0:00:56.7]} 22... Kh8 {[%clk 0:01:24.1]} 23. Qd2 {[%clk 0:00:49.7]} 23... Rc8
{[%clk 0:00:58.9]} 24. Rac1 {[%clk 0:00:35.4]} 24... cxb3 {[%clk 0:00:41.7]} 25.
axb3 {[%clk 0:00:35.9]} 25... Rxc1 {[%clk 0:00:42.4]} 26. Qxc1 {[%clk
0:00:37.3]} 26... Bd3 {[%clk 0:00:40.1]} 27. Bc7 {[%clk 0:00:22.8]} 27... Qa8
{[%clk 0:00:31.4]} 28. Nxf6 {[%clk 0:00:23.5]} 28... Nxf6 {[%clk 0:00:30.6]} 29.
Nxg7 {[%clk 0:00:15.3]} 29... Kxg7 {[%clk 0:00:25.5]} 30. Qg5+ {[%clk
0:00:15.9]} 30... Bg6 {[%clk 0:00:26.1]} 31. Be5 {[%clk 0:00:17.1]} 31... Qc6
{[%clk 0:00:26.7]} 32. g4 {[%clk 0:00:16.8]} 32... h6 {[%clk 0:00:22.8]} 33. Qf4
{[%clk 0:00:16.7]} 33... Qe6 {[%clk 0:00:17.2]} 34. h4 {[%clk 0:00:15.5]} 34...
Be4 {[%clk 0:00:12.8]} 35. f3 {[%clk 0:00:14.4]} 35... Kg6 {[%clk 0:00:10.8]}
36. h5+ {[%clk 0:00:13.9]} 36... Kh7 {[%clk 0:00:12]} 37. Bxf6 {[%clk 0:00:11]}
37... Rg8 {[%clk 0:00:13.4]} 38. Kf2 {[%clk 0:00:10.6]} 38... Qc6 {[%clk
0:00:05.6]} 39. fxe4 {[%clk 0:00:10]} 39... Qc2+ {[%clk 0:00:06.6]} 40. Re2
{[%clk 0:00:10.5]} 40... Qxb3 {[%clk 0:00:02.9]} 41. Qf5+ {[%clk 0:00:11.4]} 1-0